Workbook

Sheet 練習課題
A2: 問題１ | B2: 達成率と全体比率を求め、小数点以下１桁の百分率で表示させなさい。
B3: なお、達成率は販売目標に対する販売数の比率、全体比率は合計販売数に対する各販売数とする。
B5: 品名 | C5: 販売目標 | D5: 販売数 | E5: 達成率 | F5: 全体比率
B6: 商品Ａ | C6: 3500 | D6: 3119
B7: 商品Ｂ | C7: 2500 | D7: 2981
B8: 商品Ｃ | C8: 2000 | D8: 2134
B9: 商品Ｄ | C9: 3000 | D9: 3316
B10: 商品Ｅ | C10: 4000 | D10: 3992
B11: 商品Ｆ | C11: 3000 | D11: 2903
B12: 商品Ｇ | C12: 4000 | D12: 3044
B13: 合計 | C13: =SUM(C6:C12) -> 22000 | D13: =SUM(D6:D12) -> 21489
A16: 問題２ | B16: 販売額、売上、原価、粗利を求め、桁区切りで表示させなさい。
B17: 販売額は「定価×売掛率」、売上は「販売額×販売数」、原価は「定価×原価率×仕入数」、粗利は売上と原価の差額とする。
B19: 品名 | C19: 定価 | D19: 仕入数 | E19: 販売額 | F19: 販売数 | G19: 売上 | H19: 原価 | I19: 粗利 | K19: 売掛率 | L19: 原価率
B20: 商品Ａ | C20: 53000 | D20: 60 | F20: 58 | K20: 0.8 | L20: 0.6
B21: 商品Ｂ | C21: 24000 | D21: 100 | F21: 85
B22: 商品Ｃ | C22: 25000 | D22: 120 | F22: 120
B23: 商品Ｄ | C23: 15000 | D23: 300 | F23: 295
B24: 商品Ｅ | C24: 45000 | D24: 50 | F24: 45
B25: 商品Ｆ | C25: 52000 | D25: 50 | F25: 48
B26: 商品Ｇ | C26: 32000 | D26: 100 | F26: 70
B27: 合計 | D27: =SUM(D20:D26) -> 780 | E27: 0 | F27: 721 | G27: 0 | H27: 0 | I27: =SUM(I20:I26) -> 0
A30: 問題３ | B30: 売上高と利益を求め、桁区切り形式で表示させなさい。
B31: 売価は定価と売掛率の積、売上高は販売数と売価の積、仕入額は仕入価と販売数の積、利益は売上高と仕入額の差とする。
B34: 品名 | C34: 商品Ａ | D34: 商品Ｂ | E34: 商品Ｃ
B35: 定価 | C35: 52000 | D35: 20000 | E35: 25000
B36: 売掛率 | C36: 0.85 | D36: 0.7 | E36: 0.75
B37: 仕入価 | C37: 40000 | D37: 9800 | E37: 13500
C39: 販売数 | F39: 売上高 | I39: 利益
C40: 商品Ａ | D40: 商品Ｂ | E40: 商品Ｃ | F40: 商品Ａ | G40: 商品Ｂ | H40: 商品Ｃ | I40: 商品Ａ | J40: 商品Ｂ | K40: 商品Ｃ
B41: 東京本店 | C41: 180 | D41: 144 | E41: 183
B42: 東北支店 | C42: 149 | D42: 361 | E42: 128
B43: 名古屋店 | C43: 127 | D43: 120 | E43: 335
B44: 日本橋店 | C44: 287 | D44: 190 | E44: 212
B45: 岡山支店 | C45: 431 | D45: 122 | E45: 410
B46: 四国支店 | C46: 393 | D46: 405 | E46: 186
B47: 福岡支店 | C47: 125 | D47: 237 | E47: 295
B48: 沖縄支店 | C48: 127 | D48: 450 | E48: 114

Sheet 練習解答
A2: 問題１ | B2: 達成率と全体比率を求め、小数点以下１桁の百分率で表示させなさい。
B3: なお、達成率は販売目標に対する販売数の比率、全体比率は合計販売数に対する各販売数とする。
B5: 品名 | C5: 販売目標 | D5: 販売数 | E5: 達成率 | F5: 全体比率
B6: 商品Ａ | C6: 3500 | D6: 3119 | E6: =D6/C6 -> 0.8911428571 | F6: =D6/$D$13 -> 0.1451440272
B7: 商品Ｂ | C7: 2500 | D7: 2981 | E7: =D7/C7 -> 1.1924 | F7: =D7/$D$13 -> 0.1387221369
B8: 商品Ｃ | C8: 2000 | D8: 2134 | E8: 1.067 | F8: 0.09930662199
B9: 商品Ｄ | C9: 3000 | D9: 3316 | E9: 1.105333333 | F9: 0.1543115082
B10: 商品Ｅ | C10: 4000 | D10: 3992 | E10: 0.998 | F10: 0.1857694634
B11: 商品Ｆ | C11: 3000 | D11: 2903 | E11: 0.9676666667 | F11: 0.1350923728
B12: 商品Ｇ | C12: 4000 | D12: 3044 | E12: 0.761 | F12: 0.1416538694
B13: 合計 | C13: =SUM(C6:C12) -> 22000 | D13: =SUM(D6:D12) -> 21489
A16: 問題２ | B16: 販売額、売上、原価、粗利を求め、桁区切りで表示させなさい。
B17: 販売額は「定価×売掛率」、売上は「販売額×販売数」、原価は「定価×原価率×仕入数」、粗利は売上と原価の差額とする。
B19: 品名 | C19: 定価 | D19: 仕入数 | E19: 販売額 | F19: 販売数 | G19: 売上 | H19: 原価 | I19: 粗利 | K19: 売掛率 | L19: 原価率
B20: 商品Ａ | C20: 53000 | D20: 60 | E20: =C20*$K$20 -> 42400 | F20: 58 | G20: =E20*F20 -> 2459200 | H20: =C20*$L$20*D20 -> 1908000 | I20: =G20-H20 -> 551200 | K20: 0.8 | L20: 0.6
B21: 商品Ｂ | C21: 24000 | D21: 100 | E21: =C21*$K$20 -> 19200 | F21: 85 | G21: =E21*F21 -> 1632000 | H21: =C21*$L$20*D21 -> 1440000 | I21: =G21-H21 -> 192000
B22: 商品Ｃ | C22: 25000 | D22: 120 | E22: 20000 | F22: 120 | G22: 2400000 | H22: 1800000 | I22: 600000
B23: 商品Ｄ | C23: 15000 | D23: 300 | E23: 12000 | F23: 295 | G23: 3540000 | H23: 2700000 | I23: 840000
B24: 商品Ｅ | C24: 45000 | D24: 50 | E24: 36000 | F24: 45 | G24: 1620000 | H24: 1350000 | I24: 270000
B25: 商品Ｆ | C25: 52000 | D25: 50 | E25: 41600 | F25: 48 | G25: 1996800 | H25: 1560000 | I25: 436800
B26: 商品Ｇ | C26: 32000 | D26: 100 | E26: 25600 | F26: 70 | G26: 1792000 | H26: 1920000 | I26: -128000
B27: 合計 | D27: =SUM(D20:D26) -> 780 | E27: 196800 | F27: 721 | G27: 15440000 | H27: 12678000 | I27: =SUM(I20:I26) -> 2762000
A30: 問題３ | B30: 売上高と利益を求め、桁区切り形式で表示させなさい。
B31: 売価は定価と売掛率の積、売上高は販売数と売価の積、仕入額は仕入価と販売数の積、利益は売上高と仕入額の差とする。
B34: 品名 | C34: 商品Ａ | D34: 商品Ｂ | E34: 商品Ｃ
B35: 定価 | C35: 52000 | D35: 20000 | E35: 25000
B36: 売掛率 | C36: 0.85 | D36: 0.7 | E36: 0.75
B37: 仕入価 | C37: 40000 | D37: 9800 | E37: 13500
C39: 販売数 | F39: 売上高 | I39: 利益
C40: 商品Ａ | D40: 商品Ｂ | E40: 商品Ｃ | F40: 商品Ａ | G40: 商品Ｂ | H40: 商品Ｃ | I40: 商品Ａ | J40: 商品Ｂ | K40: 商品Ｃ
B41: 東京本店 | C41: 180 | D41: 144 | E41: 183 | F41: =C$35*C$36*C41 -> 7956000 | G41: =D$35*D$36*D41 -> 2016000 | H41: 3431250 | I41: =F41-C$37*C41 -> 756000 | J41: =G41-D$37*D41 -> 604800 | K41: 960750
B42: 東北支店 | C42: 149 | D42: 361 | E42: 128 | F42: =C$35*C$36*C42 -> 6585800 | G42: 5054000 | H42: 2400000 | I42: =F42-C$37*C42 -> 625800 | J42: 1516200 | K42: 672000
B43: 名古屋店 | C43: 127 | D43: 120 | E43: 335 | F43: 5613400 | G43: 1680000 | H43: 6281250 | I43: 533400 | J43: 504000 | K43: 1758750
B44: 日本橋店 | C44: 287 | D44: 190 | E44: 212 | F44: 12685400 | G44: 2660000 | H44: 3975000 | I44: 1205400 | J44: 798000 | K44: 1113000
B45: 岡山支店 | C45: 431 | D45: 122 | E45: 410 | F45: 19050200 | G45: 1708000 | H45: 7687500 | I45: 1810200 | J45: 512400 | K45: 2152500
B46: 四国支店 | C46: 393 | D46: 405 | E46: 186 | F46: 17370600 | G46: 5670000 | H46: 3487500 | I46: 1650600 | J46: 1701000 | K46: 976500
B47: 福岡支店 | C47: 125 | D47: 237 | E47: 295 | F47: 5525000 | G47: 3318000 | H47: 5531250 | I47: 525000 | J47: 995400 | K47: 1548750
B48: 沖縄支店 | C48: 127 | D48: 450 | E48: 114 | F48: 5613400 | G48: 6300000 | H48: 2137500 | I48: 533400 | J48: 1890000 | K48: 598500

Sheet 課題
A1: 下図のとおりの表を作成しなさい。
A2: 条件
A3: ・11-13行と15-30行の行高は１５、１４行は行高５
A4: ・Ａ列の幅は２、B:J列は自動調整とする
A5: ・タイトルは28P、HGP行書体、背景は青で枠線は太線、J15のセルと連動。
A6: ・タイトル以外の文字サイズは１０ポイント
A7: ・セル装飾は図のとおりとする
A8: ・仕入額は売上額に仕入掛率を掛けた額とし、利益は売上から仕入額を引いた額とする。
A9: ・データの不足部は全て数式で補うこと。
B11: 仕入掛率
B12: 商品A | C12: 商品B
B13: 0.8 | C13: 0.75
B15: 月 | C15: 今年 | I15: 前年売上 | J15: 売上増減
C16: 売上 | F16: 利益
C17: 商品A | D17: 商品B | E17: 合計 | F17: 商品A | G17: 商品B | H17: 合計
B18: １月 | C18: 1473000 | D18: 1458000 | F18: =C18*(1-$B$13) -> 294600 | I18: 941400
B19: ２月 | C19: 630000 | D19: 1159000 | F19: =C19*(1-$B$13) -> 126000 | I19: 1920600
B20: ３月 | C20: 786000 | D20: 1493000 | F20: 157200 | I20: 916200
B21: ４月 | C21: 580000 | D21: 822000 | F21: 116000 | I21: 1688400
B22: ５月 | C22: 741000 | D22: 831000 | F22: 148200 | I22: 2615400
B23: ６月 | C23: 608000 | D23: 591000 | F23: 121600 | I23: 2070000
B24: ７月 | C24: 970000 | D24: 1493000 | F24: 194000 | I24: 2539800
B25: ８月 | C25: 540000 | D25: 1445000 | F25: 108000 | I25: 1202400
B26: ９月 | C26: 776000 | D26: 544000 | F26: 155200 | I26: 2262600
B27: １０月 | C27: 756000 | D27: 952000 | F27: 151200 | I27: 1751400
B28: １１月 | C28: 945000 | D28: 751000 | F28: 189000 | I28: 1866600
B29: １２月 | C29: 1177000 | D29: 1327000 | F29: 235400 | I29: 1836000
B30: 計 | C30: =SUM(C18:C29) -> 9982000 | D30: =SUM(D18:D29) -> 12866000 | E30: 0 | F30: 1996400 | G30: 0 | H30: 0 | I30: 21610800 | J30: 0

Sheet 課題２
A1: 下図のとおりの表を作成しなさい。 | F1: 価格・利益表
A2: 条件
A3: ・タイトルはF1のセル参照とし、MS明朝16P太字とします。
A4: ・タイトル以外の文字サイズは１１ポイント
A5: ・Ａ列の幅は２、Ｂ列の幅は５、Ｃ～Ｈ列の幅は１４とする
A6: ・通常売価は定価から値引率を差し引いた値
A7: ・最低売価は定価から最大値引率を引いた値
A8: ・利益は売価から仕入価を引いた値とする
A9: ・定価と仕入価は図を見て数値を入力し、他は全て数式で補うこと。
A10: ・15-25行の行高は12、タイトル行は20
B15: 型番 | C15: 定価（税込） | D15: 仕入価格（税込） | E15: 通常売価（税込） | F15: 最低売価（税込） | G15: 通常利益 | H15: 最低利益
B16: A-1
B17: A-2
B18: A-3
B19: A-4
B20: A-5
B21: A-6
B22: A-7
B23: A-8
B24: A-9
B25: A-10
D28: 値引率 | E28: 0.1
D29: 最大値引率 | E29: 0.2

Sheet 課題３
A1: 下図のとおりの表を作成しなさい。
A2: 条件
A3: ・タイトルは「設定」のシートのA1セル参照とし、MSゴシック18P、行高は24とします。
A4: ・B14:N24の文字サイズは10P
A5: ・出荷期限は入荷日の３日後とする。
A6: ・値引率は「値引額÷定価」とする。
A7: ・利益は販売額－仕入額とし、利益率は全利益に対する各型番の利益の比率とする。
A8: ・14-24の行高は15、列幅はデータに合わせること。
A9: ・データの不足部分は全て数式で補うこと。
B14: 型番 | C14: 入荷日 | D14: 出荷期限 | E14: 定価（単価） | F14: 売価（単価） | G14: 入荷額（単価） | H14: 入荷数 | I14: 出荷数 | J14: 値引率 | K14: 仕入額 | L14: 販売額 | M14: 利益 | N14: 利益率
B15: A-100 | C15: 2006-05-01 | E15: 50000 | F15: 41500 | G15: 35000 | H15: 3 | I15: 3
B16: 10-25 | C16: 2006-05-01 | E16: 480000 | F16: 395000 | G16: 336000 | H16: 2 | I16: 2
B17: 10-26 | C17: 2006-05-01 | E17: 1550000 | F17: 1512680 | G17: 1085000 | H17: 3 | I17: 2
B18: C-101 | C18: 2006-05-06 | E18: 28000000 | F18: 28000000 | G18: 24000000 | H18: 1 | I18: 1
B19: 21-205 | C19: 2006-05-07 | E19: 50 | F19: 50 | G19: 35 | H19: 120 | I19: 83
B20: C-101 | C20: 2006-05-07 | E20: 65800 | F20: 60000 | G20: 46060 | H20: 10 | I20: 9
B21: 21-206 | C21: 2006-05-09 | E21: 120 | F21: 115 | G21: 84 | H21: 250 | I21: 101
B22: A-101 | C22: 2006-05-10 | E22: 52000 | F22: 43000 | G22: 38000 | H22: 25 | I22: 21
B23: A-102 | C23: 2006-05-16 | E23: 85000 | F23: 69800 | G23: 62000 | H23: 8 | I23: 8
G24: 合計 | H24: =SUM(H15:H23) -> 422 | I24: =SUM(I15:I23) -> 230 | K24: =SUM(K15:K23) -> 0 | L24: =SUM(L15:L23) -> 0 | M24: =SUM(M15:M23) -> 0

Sheet 解答
A1: 下図のとおりの表を作成しなさい。
A2: 条件
A3: ・11-13行と15-30行の行高は１５、１４行は行高５
A4: ・Ａ列の幅は２、B:J列は自動調整とする
A5: ・タイトルは28P、HGP行書体、背景は青で枠線は太線
A6: ・タイトル以外の文字サイズは１０ポイント
A7: ・セル装飾は図のとおりとする
A8: ・仕入額は売上額に仕入掛率を掛けた額とし、利益は売上から仕入額を引いた額とする。
A9: ・データの不足部は全て数式で補うこと。
B11: 仕入掛率 | E11: =J15 -> 売上増減
B12: 商品A | C12: 商品B
B13: 0.8 | C13: 0.75
B15: 月 | C15: 今年 | I15: 前年売上 | J15: 売上増減
C16: 売上 | F16: 利益
C17: 商品A | D17: 商品B | E17: 合計 | F17: 商品A | G17: 商品B | H17: 合計
B18: １月 | C18: 1473000 | D18: 1458000 | E18: =C18+D18 -> 2931000 | F18: =C18-C18*B$13 -> 294600 | G18: =D18-D18*C$13 -> 364500 | H18: =F18+G18 -> 659100 | I18: 941400 | J18: =E18-I18 -> 1989600
B19: ２月 | C19: 630000 | D19: 1159000 | E19: =C19+D19 -> 1789000 | F19: =C19-C19*B$13 -> 126000 | G19: 289750 | H19: =F19+G19 -> 415750 | I19: 1920600 | J19: =E19-I19 -> -131600
B20: ３月 | C20: 786000 | D20: 1493000 | E20: 2279000 | F20: 157200 | G20: 373250 | H20: 530450 | I20: 916200 | J20: 1362800
B21: ４月 | C21: 580000 | D21: 822000 | E21: 1402000 | F21: 116000 | G21: 205500 | H21: 321500 | I21: 1688400 | J21: -286400
B22: ５月 | C22: 741000 | D22: 831000 | E22: 1572000 | F22: 148200 | G22: 207750 | H22: 355950 | I22: 2615400 | J22: -1043400
B23: ６月 | C23: 608000 | D23: 591000 | E23: 1199000 | F23: 121600 | G23: 147750 | H23: 269350 | I23: 2070000 | J23: -871000
B24: ７月 | C24: 970000 | D24: 1493000 | E24: 2463000 | F24: 194000 | G24: 373250 | H24: 567250 | I24: 2539800 | J24: -76800
B25: ８月 | C25: 540000 | D25: 1445000 | E25: 1985000 | F25: 108000 | G25: 361250 | H25: 469250 | I25: 1202400 | J25: 782600
B26: ９月 | C26: 776000 | D26: 544000 | E26: 1320000 | F26: 155200 | G26: 136000 | H26: 291200 | I26: 2262600 | J26: -942600
B27: １０月 | C27: 756000 | D27: 952000 | E27: 1708000 | F27: 151200 | G27: 238000 | H27: 389200 | I27: 1751400 | J27: -43400
B28: １１月 | C28: 945000 | D28: 751000 | E28: 1696000 | F28: 189000 | G28: 187750 | H28: 376750 | I28: 1866600 | J28: -170600
B29: １２月 | C29: 1177000 | D29: 1327000 | E29: 2504000 | F29: 235400 | G29: 331750 | H29: 567150 | I29: 1836000 | J29: 668000
B30: 計 | C30: =SUM(C18:C29) -> 9982000 | D30: =SUM(D18:D29) -> 12866000 | E30: 22848000 | F30: 1996400 | G30: 3216500 | H30: 5212900 | I30: 21610800 | J30: 1237200

Sheet 解答２
A1: 下図のとおりの表を作成しなさい。 | F1: 価格・利益表
A2: 条件
A3: ・タイトルはF1のセル参照とし、MS明朝16P太字とします。
A4: ・タイトル以外の文字サイズは１１ポイント
A5: ・Ａ列の幅は２、Ｂ列の幅は５、Ｃ～Ｈ列の幅は１４とする
A6: ・通常売価は定価から値引率を差し引いた値
A7: ・最低売価は定価から最大値引率を引いた値
A8: ・利益は売価から仕入価を引いた値とする
A9: ・定価と仕入価は図を見て数値を入力し、他は全て数式で補うこと。
A10: ・15-25行の行高は12、タイトル行は20
B14: =F1 -> 価格・利益表
B15: 型番 | C15: 定価（税込） | D15: 仕入価格（税込） | E15: 通常売価（税込） | F15: 最低売価（税込） | G15: 通常利益 | H15: 最低利益
B16: A-1 | C16: 28800 | D16: 21600 | E16: =C16-C16*$E$28 -> 25920 | F16: =C16-C16*$E$29 -> 23040 | G16: =E16-D16 -> 4320 | H16: =F16-D16 -> 1440
B17: A-2 | C17: 19800 | D17: 14850 | E17: =C17-C17*$E$28 -> 17820 | F17: =C17-C17*$E$29 -> 15840 | G17: =E17-D17 -> 2970 | H17: =F17-D17 -> 990
B18: A-3 | C18: 24800 | D18: 18600 | E18: 22320 | F18: 19840 | G18: 3720 | H18: 1240
B19: A-4 | C19: 21000 | D19: 15750 | E19: 18900 | F19: 16800 | G19: 3150 | H19: 1050
B20: A-5 | C20: 2200 | D20: 1650 | E20: 1980 | F20: 1760 | G20: 330 | H20: 110
B21: A-6 | C21: 8500 | D21: 6375 | E21: 7650 | F21: 6800 | G21: 1275 | H21: 425
B22: A-7 | C22: 7500 | D22: 5625 | E22: 6750 | F22: 6000 | G22: 1125 | H22: 375
B23: A-8 | C23: 6800 | D23: 5100 | E23: 6120 | F23: 5440 | G23: 1020 | H23: 340
B24: A-9 | C24: 9800 | D24: 7350 | E24: 8820 | F24: 7840 | G24: 1470 | H24: 490
B25: A-10 | C25: 1000 | D25: 750 | E25: 900 | F25: 800 | G25: 150 | H25: 50
D28: 値引率 | E28: 0.1
D29: 最大値引率 | E29: 0.2

Sheet 解答３
A1: 下図のとおりの表を作成しなさい。
A2: 条件
A3: ・タイトルは「設定」のシートのA1セル参照とし、MSゴシック18P、行高は24とします。
A4: ・B14:N24の文字サイズは10P
A5: ・出荷期限は入荷日の３日後とする。
A6: ・値引率は「値引額÷定価」とする。
A7: ・利益は販売額－仕入額とし、利益率は全利益に対する各型番の利益の比率とする。
A8: ・14-24の行高は15、列幅はデータに合わせること。
A9: ・データの不足部分は全て数式で補うこと。
B12: =設定!A1 -> 利益率計算表
B14: 型番 | C14: 入荷日 | D14: 出荷期限 | E14: 定価（単価） | F14: 売価（単価） | G14: 入荷額（単価） | H14: 入荷数 | I14: 出荷数 | J14: 値引率 | K14: 仕入額 | L14: 販売額 | M14: 利益 | N14: 利益率
B15: A-100 | C15: 2006-05-01 | D15: =C15+3 -> 2006-05-04 | E15: 50000 | F15: 41500 | G15: 35000 | H15: 3 | I15: 3 | J15: =(E15-F15)/E15 -> 0.17 | K15: =G15*H15 -> 105000 | L15: =F15*I15 -> 124500 | M15: =L15-K15 -> 19500 | N15: =M15/$M$24 -> 0.00488327104
B16: 10-25 | C16: 2006-05-01 | D16: =C16+3 -> 2006-05-04 | E16: 480000 | F16: 395000 | G16: 336000 | H16: 2 | I16: 2 | J16: =(E16-F16)/E16 -> 0.1770833333 | K16: =G16*H16 -> 672000 | L16: =F16*I16 -> 790000 | M16: =L16-K16 -> 118000 | N16: =M16/$M$24 -> 0.0295500504
B17: 10-26 | C17: 2006-05-01 | D17: 2006-05-04 | E17: 1550000 | F17: 1512680 | G17: 1085000 | H17: 3 | I17: 2 | J17: 0.02407741935 | K17: 3255000 | L17: 3025360 | M17: -229640 | N17: -0.05750740316
B18: C-101 | C18: 2006-05-06 | D18: 2006-05-09 | E18: 28000000 | F18: 28000000 | G18: 24000000 | H18: 1 | I18: 1 | J18: 0 | K18: 24000000 | L18: 28000000 | M18: 4000000 | N18: 1.001696624
B19: 21-205 | C19: 2006-05-07 | D19: 2006-05-10 | E19: 50 | F19: 50 | G19: 35 | H19: 120 | I19: 83 | J19: 0 | K19: 4200 | L19: 4150 | M19: -50 | N19: -1.25212078e-05
B20: C-101 | C20: 2006-05-07 | D20: 2006-05-10 | E20: 65800 | F20: 60000 | G20: 46060 | H20: 10 | I20: 9 | J20: 0.08814589666 | K20: 460600 | L20: 540000 | M20: 79400 | N20: 0.01988367798
B21: 21-206 | C21: 2006-05-09 | D21: 2006-05-12 | E21: 120 | F21: 115 | G21: 84 | H21: 250 | I21: 101 | J21: 0.04166666667 | K21: 21000 | L21: 11615 | M21: -9385 | N21: -0.002350230703
B22: A-101 | C22: 2006-05-10 | D22: 2006-05-13 | E22: 52000 | F22: 43000 | G22: 38000 | H22: 25 | I22: 21 | J22: 0.1730769231 | K22: 950000 | L22: 903000 | M22: -47000 | N22: -0.01176993533
B23: A-102 | C23: 2006-05-16 | D23: 2006-05-19 | E23: 85000 | F23: 69800 | G23: 62000 | H23: 8 | I23: 8 | J23: 0.1788235294 | K23: 496000 | L23: 558400 | M23: 62400 | N23: 0.01562646733
G24: 合計 | H24: =SUM(H15:H23) -> 422 | I24: =SUM(I15:I23) -> 230 | K24: =SUM(K15:K23) -> 29963800 | L24: =SUM(L15:L23) -> 33957025 | M24: =SUM(M15:M23) -> 3993225

Sheet 設定
A1: 利益率計算表
